bitfinex/quotes_ETHUSD_20250801
["timestamp","ask_amount","ask_price","bid_price","bid_amount"]
[1754032411327,6.78743073,3647.2,3641.9,2.74576199]
[1754032411328,1.644,3646.0,3641.9,2.74576199]
[1754032411560,0.55,3644.9,3642.2,0.013381]
[1754032411861,0.441,3644.8,3642.3,0.2756]
[1754032412064,11.017,3644.7,3642.3,0.2756]
[1754032412360,0.25315257,3644.6,3642.3,0.2756]
[1754032412534,0.441,3644.5,3642.4,0.02745442]
[1754032412735,0.441,3644.5,3642.5,0.2756]
[1754032412952,1.9707,3645.1,3642.5,0.2756]
[1754032413134,0.20192275,3645.4,3642.6,0.02745291]
[1754032413468,0.20192275,3645.4,3644.3,3.0]
[1754032413630,4.485,3645.3,3644.2,2.74407658]
[1754032413834,0.02,3644.9,3644.3,0.2556]
[1754032414028,4.493,3644.8,3644.3,0.2556]
[1754032414242,4.492,3644.7,3643.9,3.0]
[1754032414448,4.492,3644.7,3644.0,0.3]
[1754032414766,4.492,3644.7,3644.2,3.0]
[1754032414984,4.492,3644.7,3644.6,2.74378532]
[1754032415473,0.02,3644.9,3644.8,5.74363476]
[1754032415973,0.02,3645.9,3645.6,2.74300852]
[1754032416199,4.488,3645.8,3645.7,0.27430085]
[1754032416479,4.488,3645.8,3644.9,0.2556]
[1754032416659,0.02,3645.9,3645.1,3.0]
[1754032416856,4.489,3645.8,3645.2,0.28303333]
[1754032417058,4.489,3645.8,3645.2,0.2556]
[1754032417375,4.489,3645.8,3645.2,3.2556]
[1754032417587,4.489,3645.8,3645.5,3.0]
[1754032417744,4.489,3645.8,3645.3,0.5998947]
[1754032417931,0.441,3645.7,3644.1,0.2556]
[1754032418134,0.441,3645.7,3644.4,2.74386866]
[1754032418354,0.441,3645.7,3644.1,0.2556]
[1754032418355,0.441,3645.7,3644.3,2.74400231]
[1754032418566,4.489,3645.8,3644.4,0.002]
[1754032418866,0.1368,3645.7,3645.2,0.1368]
[1754032419078,0.441,3645.6,3645.2,0.1368]
[1754032419660,0.1368,3645.7,3645.2,0.1368]
[1754032419831,0.55,3645.4,3644.4,0.002]
[1754032420031,0.1368,3644.6,3644.4,0.002]
[1754032420241,4.485,3644.5,3644.4,0.002]
[1754032420442,4.926,3644.5,3644.4,0.002]
[1754032420770,6.4557,3644.5,3644.4,0.002]
[1754032421073,4.926,3644.5,3644.4,0.002]
[1754032421480,6.96198,3644.5,3644.4,0.002]
[1754032421764,6.4557,3644.5,3644.4,0.002]
[1754032423476,0.441,3644.5,3644.4,0.002]
[1754032423770,4.519,3644.5,3644.4,0.002]
[1754032424831,4.96,3644.5,3644.4,0.002]
[1754032425058,7.0437,3644.5,3644.4,0.002]
[1754032425282,7.85727,3644.5,3644.4,0.002]
[1754032425568,6.4937,3644.5,3644.4,0.002]
[1754032425728,4.964,3644.5,3644.4,0.002]
[1754032425933,4.523,3644.5,3644.4,0.002]
[1754032427073,6.6849,3644.5,3644.4,0.002]
[1754032427244,7.2349,3644.5,3644.4,0.002]
[1754032427444,8.61759,3644.5,3644.4,0.002]
[1754032427950,8.06759,3644.5,3644.4,0.002]
[1754032428269,8.06759,3644.5,3643.1,0.02]
[1754032428270,0.55,3644.3,3643.1,0.02]
[1754032428433,0.55,3644.0,3643.1,0.02]
[1754032428630,0.55,3643.6,3643.1,0.02]
[1754032428836,0.55,3643.4,3643.1,0.02]
[1754032429036,0.55,3643.2,3643.1,0.02]
[1754032429268,5.093,3643.2,3643.1,0.02]
[1754032429449,7.2549,3643.2,3643.1,0.02]
[1754032430544,2.7119,3643.2,3643.1,0.02]
[1754032430783,7.2589,3643.2,3643.1,0.02]
[1754032431017,8.03572,3643.2,3643.1,0.02]
[1754032432934,5.87382,3643.2,3643.1,0.02]
[1754032433100,5.097,3643.2,3643.1,0.02]
[1754032433423,5.2346,3643.2,3643.1,0.02]
[1754032433586,5.7063,3643.2,3643.1,0.02]
[1754032434215,9.85807036,3643.2,3643.1,0.02]
[1754032434432,2.59917036,3643.2,3643.1,0.02]
[1754032434634,4.541,3643.2,3643.1,0.02]
[1754032434839,4.541,3643.2,3643.1,3.04141306]
[1754032435000,4.541,3643.2,3643.1,3.29901306]
[1754032435203,4.547,3643.2,3643.1,3.29901306]
[1754032435402,7.12951271,3643.9,3643.6,2.74449936]
[1754032435654,4.546,3643.8,3643.7,2.74446304]
[1754032435835,4.546,3643.8,3643.7,3.01890934]
[1754032436202,4.546,3643.8,3643.7,6.01890934]
[1754032436426,4.546,3643.8,3643.7,6.27650934]
[1754032437224,2.46157036,3644.8,3643.9,2.74431241]
[1754032437412,7.00557036,3644.8,3644.7,2.74371004]
[1754032438166,0.4717,3646.1,3644.9,2.74355949]
[1754032438326,4.544,3645.8,3645.3,2.74319892]
[1754032438525,4.544,3645.7,3645.3,2.74324055]
[1754032438734,4.544,3645.7,3645.5,2.74304465]
[1754032438930,4.544,3645.7,3645.0,3.0]
[1754032439107,4.544,3645.7,3645.6,2.74303269]
[1754032439815,0.4917,3646.9,3645.7,2.74290326]
[1754032440015,0.25088456,3646.8,3645.8,2.74288222]
[1754032440222,4.563,3645.9,3645.8,2.77031104]
[1754032440416,4.563,3645.9,3645.8,3.00048222]
[1754032440616,4.563,3645.9,3645.8,3.57482077]
[1754032440818,0.02,3645.9,3645.8,3.57482077]
[1754032441006,0.02,3645.9,3645.8,6.57482077]
[1754032441661,1e-08,3645.9,3645.8,6.57482077]
[1754032442334,0.02,3646.9,3646.8,2.74213008]
[1754032442534,0.27160075,3646.9,3646.8,3.01634309]
[1754032442762,0.27160075,3646.9,3646.8,2.99973008]
[1754032442939,0.27160075,3646.9,3646.8,2.74213008]
[1754032443476,0.2717535,3646.9,3646.8,5.74213008]
[1754032443650,0.52346012,3646.9,3646.8,5.74213008]
[1754032444298,0.52346012,3646.9,3646.8,6.59056574]
[1754032444590,0.52346012,3646.9,3646.8,6.98496574]
[1754032444740,1e-08,3646.9,3646.8,6.98496574]
[1754032445595,4.547,3648.5,3647.8,5.74137836]
[1754032446190,1e-08,3647.9,3647.8,5.99897836]
[1754032446392,1e-08,3647.9,3647.8,6.88957636]
[1754032446683,1e-08,3647.9,3647.8,7.02637636]
[1754032447152,1e-08,3647.9,3647.8,7.28397636]
[1754032449845,1e-08,3647.9,3647.8,7.02637636]
[1754032450046,1e-08,3647.9,3647.8,7.14717636]
[1754032450265,1e-08,3647.9,3647.8,7.28397636]
[1754032450670,1e-08,3647.9,3647.8,11.81797636]
[1754032450842,1e-08,3647.9,3647.8,7.83397636]
[1754032451046,1e-08,3647.9,3647.8,12.36897636]
[1754032451345,0.4727,3650.3,3648.8,2.74062705]
[1754032451547,0.1368,3650.1,3648.8,6.27544455]
[1754032451774,0.4717,3649.6,3648.8,6.27544455]
[1754032452083,0.4717,3650.0,3648.8,6.27544455]
[1754032454082,0.4717,3650.0,3648.8,10.81644455]
[1754032454289,0.4717,3649.8,3648.8,11.01970287]
[1754032454786,4.545,3650.3,3648.8,11.01970287]
[1754032454948,0.4717,3650.1,3648.8,11.01970287]
[1754032455149,0.4717,3650.1,3648.8,11.27730287]
[1754032455387,0.4717,3650.1,3649.7,3.0]
[1754032455557,0.4717,3650.1,3649.8,2.87667615]
[1754032455757,4.545,3650.3,3649.8,5.87667615]
[1754032455957,0.4927,3649.9,3649.8,5.87667615]
[1754032456370,0.4927,3649.9,3649.8,3.1368]
[1754032456689,2.1027,3649.9,3649.8,3.1368]
[1754032457675,0.4927,3649.9,3649.8,3.1368]
[1754032457878,2.0657,3649.9,3649.8,0.1368]
[1754032458088,2.0657,3649.9,3648.8,0.20325832]
[1754032458293,2.0657,3649.9,3647.7,2.99898363]
[1754032458294,1.631,3649.9,3648.6,2.74075242]
[1754032458592,0.1368,3649.5,3648.8,0.1368]
[1754032459087,2.0447,3649.4,3649.1,0.1368]
[1754032459278,2.0447,3649.3,3649.0,0.1368]
[1754032459477,2.0447,3649.2,3649.0,0.1368]
[1754032459676,0.4347,3649.1,3649.0,0.1368]
[1754032459988,1.61,3649.2,3649.0,0.1368]
[1754032459989,0.4347,3649.2,3649.0,0.1368]
[1754032460281,0.1368,3649.7,3649.0,0.1368]
[1754032460282,0.4347,3649.1,3649.0,3.1368]
[1754032460454,0.4347,3649.1,3649.0,3.0]
[1754032460660,0.4347,3649.1,3649.0,5.87727684]
[1754032461074,0.4347,3649.1,3649.0,3.1368]
[1754032461277,0.4347,3649.1,3649.0,0.1368]
[1754032462000,0.4347,3649.5,3649.1,5.74036078]
[1754032462198,0.1368,3649.8,3649.2,0.1368]
[1754032462358,0.4347,3649.7,3649.2,0.1368]
[1754032462559,1.61,3649.6,3649.2,0.1368]
[1754032462754,2.0447,3649.5,3649.2,0.1368]
[1754032462991,2.0447,3649.4,3649.2,0.1368]
[1754032463206,2.0447,3649.3,3649.2,0.1368]
[1754032463672,0.22025,3649.7,3649.2,0.1368]
[1754032463875,0.4347,3649.6,3649.4,2.74012815]
[1754032464200,0.4347,3649.6,3649.2,2.87712466]
[1754032464201,0.4347,3649.6,3649.3,2.74025155]
[1754032464388,0.021,3649.9,3649.0,2.740472]
[1754032464389,0.021,3649.9,3649.8,5.73987615]
[1754032464771,0.021,3649.9,3649.8,5.87667615]
[1754032465279,2.0657,3649.9,3649.8,3.0]
[1754032465485,0.021,3649.9,3649.8,5.87667615]
[1754032466281,0.4557,3649.9,3649.8,3.1368]
[1754032466499,0.4557,3649.9,3649.5,0.1368]
[1754032466500,2.0657,3649.9,3649.5,0.1368]
[1754032466653,2.25127,3649.8,3649.7,2.73987922]
[1754032466857,2.0447,3649.8,3649.2,3.0]
[1754032467058,0.4347,3649.7,3649.2,3.1368]
[1754032467300,1.61,3649.6,3649.2,5.87712134]
[1754032467472,0.1368,3649.8,3649.2,0.1368]
[1754032467659,2.0447,3649.5,3649.4,2.74012724]
[1754032468002,2.0447,3649.5,3649.3,2.74023508]
[1754032468338,1.61,3649.5,3649.4,2.74017646]
[1754032468547,0.021,3649.9,3649.4,0.1368]
[1754032468712,0.021,3649.9,3649.7,2.73992276]
[1754032468915,0.021,3649.9,3649.8,2.73987615]
[1754032469746,0.021,3649.9,3649.8,2.87667615]
[1754032469900,0.021,3649.9,3649.8,5.87667615]
[1754032470829,0.4557,3649.9,3649.8,5.87667615]
[1754032471035,0.4557,3649.9,3649.8,3.1368]
[1754032471236,0.4557,3649.9,3649.2,2.74026654]
[1754032471237,2.0657,3649.9,3649.2,2.74026654]
[1754032471440,0.1368,3649.7,3649.1,0.1368]
[1754032471600,0.1368,3649.7,3649.1,2.87719972]
[1754032471806,0.4347,3649.6,3649.1,0.1368]
[1754032472367,2.0447,3649.5,3649.1,0.1368]
[1754032472507,0.4347,3649.4,3649.1,2.87719795]
[1754032472900,0.4347,3649.4,3649.2,2.74030211]
[1754032473335,1.61,3649.5,3649.2,2.74032664]
[1754032473536,0.1368,3649.7,3649.1,2.87719274]
[1754032473718,0.669507,3649.7,3649.1,0.1368]
[1754032474143,0.4347,3649.6,3649.1,0.1368]
[1754032474447,0.55,3649.5,3646.8,2.74212968]
[1754032474654,0.55,3649.1,3647.3,5.74168147]
[1754032474851,0.55,3648.4,3646.7,2.74220129]
[1754032475010,9.08380405,3648.5,3645.9,0.3944]
[1754032475011,0.55,3648.2,3646.5,2.74228733]
[1754032475339,6.585,3648.2,3647.0,2.74197475]
[1754032475539,2.0447,3648.1,3646.1,0.02]
[1754032475716,2.0447,3648.1,3646.7,2.74219481]
[1754032475942,2.0447,3648.0,3646.9,2.74199973]
[1754032476144,0.55,3647.9,3646.3,0.2103673]
[1754032476458,0.55,3647.7,3646.1,0.02]
[1754032476972,0.55,3647.5,3646.6,2.74220984]
[1754032477147,4.527,3647.4,3646.6,2.74220984]
[1754032477343,6.5717,3647.4,3646.6,2.74220984]
[1754032477666,2.0447,3647.3,3646.6,2.74220984]
[1754032477835,2.0447,3647.3,3646.6,3.0]
[1754032478036,2.0447,3647.2,3646.6,3.0]
[1754032478280,2.0447,3647.2,3646.6,5.74226643]
[1754032478447,4.522,3647.2,3647.0,2.74197264]
[1754032478766,4.522,3647.2,3647.1,3.33810178]
[1754032479473,4.522,3647.2,3647.1,2.76190452]
[1754032482295,1.61,3648.0,3647.1,0.02]
[1754032482459,6.585,3648.2,3648.0,2.74115988]
[1754032482656,4.515,3648.1,3648.0,2.74115988]
[1754032483243,4.515,3648.1,3647.4,0.3944]
[1754032483466,4.515,3648.1,3648.0,2.74122807]
[1754032484192,4.515,3648.1,3648.0,0.1368]
[1754032484587,4.515,3648.1,3648.0,2.87802807]
[1754032484787,4.515,3648.2,3648.1,2.74115292]
[1754032485176,4.515,3648.2,3648.1,5.74115292]
[1754032485521,4.514,3648.9,3648.1,1.59665271]
[1754032485688,4.514,3648.9,3648.8,2.74062705]
[1754032485897,4.514,3648.9,3648.8,2.87742705]
[1754032486101,4.514,3648.9,3648.8,5.87742705]
[1754032487016,6.588,3649.5,3649.4,2.74017646]
[1754032487220,11.1,3649.5,3649.4,2.74017646]
[1754032487386,4.512,3649.5,3649.4,2.87697646]
[1754032487720,4.512,3649.5,3649.4,2.57697646]
[1754032488378,4.512,3649.5,3649.4,0.1368]
[1754032488585,4.512,3649.5,3649.4,2.87697646]
[1754032490172,4.512,3649.5,3649.4,0.1368]
[1754032490926,4.512,3649.5,3649.4,5.87697646]
[1754032491695,4.512,3649.5,3649.4,0.1368]
[1754032491901,4.512,3649.5,3649.4,2.87697646]
[1754032492108,4.512,3649.5,3649.4,5.87697646]
[1754032492403,4.512,3649.5,3649.4,3.1368]
[1754032492604,4.9585,3649.5,3649.4,3.1368]
[1754032493714,7.19085,3649.5,3649.1,0.002]
[1754032493914,6.74435,3649.5,3649.2,3.1368]
[1754032494120,0.4465,3649.4,3649.2,0.1368]
[1754032495727,0.4465,3649.4,3649.2,2.87712102]
[1754032496028,4.512,3649.5,3649.2,0.1368]
[1754032496395,4.512,3649.5,3649.1,3.002]
[1754032496396,4.512,3649.5,3649.4,0.1368]
[1754032496944,4.9585,3649.5,3649.4,0.1368]
[1754032500444,4.512,3649.5,3649.4,0.1368]
[1754032501157,4.512,3649.5,3649.4,2.87697646]
[1754032501303,4.512,3649.5,3649.4,5.87697646]
[1754032501498,4.512,3649.5,3649.4,6.78108069]
[1754032501698,4.473,3649.8,3649.7,2.73995122]
[1754032501924,6.6559,3649.8,3649.7,0.1368]
[1754032502097,6.6559,3649.8,3649.1,3.002]
[1754032502306,0.4465,3649.7,3649.4,0.1368]
[1754032502513,7.139,3650.8,3650.7,2.7392007]
[1754032502514,0.001,3650.8,3650.7,2.7392007]
[1754032502698,0.25439942,3651.8,3650.9,2.73905064]
[1754032502897,1.7364,3652.8,3651.8,5.73837559]
[1754032503159,4.549,3652.7,3651.7,3.1368]
[1754032503300,4.549,3652.7,3651.9,0.027383]
[1754032503503,2.1829,3652.8,3652.3,0.1368]
[1754032503702,1.7364,3652.8,3652.1,3.0]
[1754032503923,0.4465,3652.8,3652.6,0.1368]
[1754032504126,6.7299,3652.7,3652.6,0.1368]
[1754032504536,7.01625975,3652.7,3651.7,3.20856996]
[1754032504755,2.1829,3652.6,3652.1,0.1368]
[1754032504903,0.1368,3652.4,3651.9,3.1368]
[1754032505102,1.7364,3652.3,3651.9,0.1368]
[1754032505424,4.548,3652.2,3651.9,0.1368]
[1754032505626,6.7309,3652.2,3651.0,3.0]
[1754032505839,0.1368,3652.0,3651.5,0.1368]
[1754032506059,0.1368,3652.0,3651.1,3.0]
[1754032506255,2.1829,3651.9,3650.0,0.3734]
[1754032506554,2.41487,3651.8,3650.8,2.73906763]
[1754032506756,4.544,3651.7,3651.3,0.1368]
[1754032507102,2.1829,3651.6,3651.3,0.1368]
[1754032507336,2.1829,3651.6,3651.3,5.87549114]
[1754032507537,4.544,3651.7,3651.4,2.73867557]
[1754032507704,0.5833,3652.0,3651.4,2.73867557]
[1754032507904,4.54,3651.9,3651.4,2.73867557]
[1754032508111,4.9865,3651.9,3651.4,2.73867557]
[1754032508319,0.4465,3651.9,3651.5,0.1368]
[1754032508518,4.9845,3651.8,3651.5,0.1368]
[1754032509049,4.538,3651.8,3651.6,2.7384942]
[1754032509455,4.538,3651.8,3651.5,0.1368]
[1754032509623,5.6506902,3651.8,3651.5,0.1368]
[1754032510047,4.538,3651.8,3651.7,5.73845058]
[1754032510237,1.8742,3652.4,3651.7,5.73845058]
[1754032510542,4.532,3652.3,3651.9,0.1368]
[1754032510748,4.532,3652.3,3652.2,2.73807568]
[1754032511041,4.532,3652.3,3652.2,2.87487568]
[1754032511841,0.001,3652.4,3652.3,5.73800071]
[1754032511842,4.529,3652.4,3652.3,5.73800071]
[1754032512551,4.529,3652.4,3652.3,3.0]
[1754032512744,4.529,3652.4,3652.3,5.73800071]
[1754032513718,0.001,3652.4,3652.3,7.01003528]
[1754032513938,0.001,3652.4,3652.3,7.14683528]
[1754032514634,0.001,3652.4,3652.3,7.94723528]
[1754032514816,1.8732,3654.0,3652.8,2.73762593]
[1754032514817,4.522,3653.3,3652.8,2.73762593]
[1754032515012,4.522,3653.3,3652.8,5.73762593]
[1754032515247,4.522,3653.3,3652.8,5.87442593]
[1754032515953,4.522,3653.3,3652.8,3.1368]
[1754032516151,4.522,3653.3,3652.8,5.87442593]
[1754032516514,4.522,3653.3,3652.8,3.1368]
[1754032516942,2.0569,3652.9,3652.8,0.1368]
[1754032517150,2.0569,3652.9,3652.2,2.73801896]
[1754032517151,2.26259,3652.9,3652.1,2.73815065]
[1754032517365,4.9878,3652.8,3652.1,2.73815065]
[1754032517666,2.1737,3652.7,3652.2,0.1368]
[1754032518034,4.3469,3652.6,3652.2,0.1368]
[1754032518366,7.392,3652.5,3651.3,0.20865319]
[1754032518552,7.392,3652.5,3651.2,3.0]
[1754032518553,0.95657,3652.4,3651.2,5.73881963]
[1754032518871,0.1368,3652.1,3651.6,0.1368]
[1754032519041,6.5679,3652.0,3651.6,0.1368]
[1754032519371,2.0369,3651.9,3651.6,0.1368]
[1754032519867,4.531,3652.0,3651.5,3.0]
[1754032520074,4.531,3652.0,3651.8,0.1368]
[1754032520843,2.31,3652.5,3651.8,0.1368]
[1754032521045,4.526,3652.4,3652.1,2.73809615]
[1754032521245,4.526,3652.4,3652.3,2.73800071]
[1754032521544,4.526,3652.4,3652.3,2.87480071]
[1754032521756,4.522,3652.4,3652.3,0.1368]
[1754032522186,6.5589,3652.4,3652.3,0.1368]
[1754032523783,4.522,3652.4,3652.3,0.1368]
[1754032526280,9.4579,3652.4,3651.3,0.20647955]
[1754032526449,4.3469,3652.3,3651.7,0.1368]
[1754032526652,0.1368,3652.2,3651.7,0.1368]
[1754032526978,2.0369,3652.1,3651.7,0.1368]
[1754032527182,6.5479,3652.0,3651.6,0.1368]
[1754032527361,4.3469,3651.9,3651.6,0.1368]
[1754032528380,2.31,3651.9,3651.6,0.1368]
[1754032528569,2.31,3651.9,3651.8,2.87517559]
[1754032528879,2.31,3651.9,3651.8,5.87517559]
[1754032528880,6.82,3651.9,3651.8,5.87517559]
[1754032529082,6.82,3651.9,3651.8,3.1368]
[1754032529282,6.82,3651.9,3651.8,5.87517559]
[1754032530453,6.82,3651.9,3651.8,3.1368]
[1754032530654,6.82,3651.9,3651.8,5.87517559]
[1754032531584,6.82,3651.9,3651.8,3.1368]
[1754032531585,8.8569,3651.9,3651.8,3.1368]
[1754032531774,9.6757,3651.9,3651.3,0.1368]
[1754032531972,2.0369,3651.8,3651.3,0.1368]
[1754032532486,0.55,3651.6,3650.1,0.02]
[1754032532666,0.1368,3651.2,3650.7,0.1368]
[1754032532862,6.5379,3651.1,3650.7,0.1368]
[1754032533063,4.3469,3651.0,3650.7,0.1368]
[1754032533290,2.31,3650.9,3650.3,0.20346667]
[1754032533587,2.31,3650.9,3650.1,0.02]
[1754032533588,4.6358,3650.8,3650.2,0.1368]
[1754032533889,2.31,3650.7,3650.2,0.1368]
[1754032534095,4.3469,3650.7,3650.2,0.1368]
[1754032534399,2.0369,3650.6,3650.2,0.1368]
[1754032534565,4.498,3650.5,3650.1,0.02]
[1754032534886,6.5349,3650.5,3650.1,0.1568]
[1754032535089,4.498,3650.5,3650.1,0.1568]
[1754032535387,2.0369,3650.4,3650.1,0.1568]
[1754032535757,0.4658,3650.4,3650.1,0.1568]
[1754032535961,4.498,3650.5,3650.1,0.02]
[1754032536258,4.498,3650.5,3650.3,0.1368]
[1754032536469,4.3469,3650.4,3650.3,0.1368]
[1754032536659,2.31,3650.4,3650.3,0.1368]
[1754032536957,4.502,3650.4,3650.3,0.1368]
[1754032537153,6.5389,3650.4,3650.3,0.1368]
[1754032537356,6.5389,3650.4,3650.1,0.02]
[1754032537565,5.29269,3650.4,3650.1,0.02]
[1754032537768,2.0369,3650.3,3650.1,0.02]
[1754032538211,2.5869,3650.2,3650.1,0.02]
[1754032538411,2.7237,3650.2,3650.1,0.02]
[1754032538575,12.441234,3650.2,3649.4,0.002]
[1754032538888,0.1368,3649.5,3649.4,0.002]
[1754032539094,4.6528,3649.5,3649.4,0.002]
[1754032539256,6.6897,3649.5,3649.4,0.002]
[1754032539880,9.5497,3649.5,3649.4,0.002]
[1754032542159,8.8629,3649.5,3649.4,0.002]
[1754032542597,8.3971,3649.5,3649.4,0.002]
[1754032542780,6.82,3649.5,3649.4,0.002]
[1754032543405,8.8569,3649.5,3649.4,0.002]
[1754032543602,8.9937,3649.5,3649.4,0.002]
[1754032543803,8.5279,3649.5,3649.4,0.002]
[1754032543973,6.9568,3649.5,3649.4,0.002]
[1754032544172,8.5279,3649.5,3649.4,0.002]
[1754032544516,9.84549,3649.5,3649.4,0.002]
[1754032545760,6.819,3649.5,3649.4,0.002]
[1754032547579,8.9517,3649.5,3649.4,0.002]
[1754032547778,9.0885,3649.5,3649.4,0.002]
[1754032548781,6.9558,3649.5,3649.4,0.002]
[1754032548997,6.819,3649.5,3649.4,0.002]
[1754032549679,6.819,3649.5,3649.4,3.002]
[1754032549890,6.819,3649.5,3649.4,0.002]
[1754032551204,6.801,3649.5,3649.4,0.002]
[1754032551382,2.31,3649.5,3649.4,0.002]
[1754032551587,6.801,3649.5,3649.4,0.002]
[1754032552018,6.8,3649.5,3649.4,0.002]
[1754032552173,6.798,3649.5,3649.4,0.002]
[1754032552375,6.797,3649.5,3649.4,0.002]
[1754032552894,8.4796,3649.5,3649.4,0.002]
[1754032553423,10.47914,3649.5,3649.4,0.002]
[1754032557115,2.308,3649.3,3649.1,0.022]
[1754032557414,4.6148,3649.2,3649.1,0.022]
[1754032557916,6.7475,3649.2,3649.1,0.022]
[1754032558817,6.2974,3649.2,3649.1,0.022]
[1754032559019,6.2914,3649.2,3649.1,0.022]
[1754032559215,7.75929823,3649.2,3649.1,0.022]
[1754032559378,8.20939823,3649.2,3649.1,0.022]
[1754032559917,11.06739823,3649.2,3649.1,0.022]
[1754032560801,13.80772487,3649.2,3649.1,0.022]
[1754032561035,0.55,3649.0,3648.1,0.02]
[1754032561199,15.21338281,3648.2,3648.1,0.02]
[1754032561396,26.40618281,3648.2,3648.1,0.02]
[1754032561721,0.55,3647.7,3647.6,0.002]
[1754032562012,5.1568,3647.7,3647.6,0.002]
[1754032562216,5.94661539,3647.7,3647.6,0.002]
[1754032562424,8.07931539,3647.7,3647.6,0.002]
[1754032562728,10.82077233,3647.7,3646.1,0.02]
[1754032562883,0.6868,3647.2,3646.1,0.02]
[1754032563084,7.89662934,3647.2,3646.1,0.02]
[1754032563285,9.13639227,3647.2,3646.1,0.02]
[1754032563526,10.81899227,3647.2,3646.1,0.02]
[1754032563817,3.60916293,3647.2,3646.1,0.02]
[1754032564018,7.2885,3647.2,3646.1,0.02]
[1754032564384,7.2885,3647.2,3646.1,0.1568]
[1754032564588,2.8195,3647.2,3646.1,0.02]
[1754032564790,7.2865,3647.2,3646.2,2.87937378]
[1754032564984,6.8364,3647.2,3646.2,0.1368]
[1754032565183,5.1538,3647.2,3646.2,2.8793766]
[1754032565424,5.1538,3647.2,3646.5,2.74235522]
[1754032565633,5.1538,3647.2,3646.4,1.3562]
[1754032565634,0.1368,3647.2,3646.4,0.5102]
[1754032565920,0.1368,3647.2,3646.1,0.02]
[1754032565921,4.468,3647.2,3647.1,1.2394]
[1754032566106,4.468,3647.2,3647.1,3.98130452]
[1754032566311,0.1368,3647.7,3647.2,2.74179172]
[1754032566506,4.467,3647.6,3647.2,1.53199707]
[1754032566711,4.467,3647.5,3647.4,2.74166826]
[1754032566908,4.467,3647.5,3647.4,6.96106826]
[1754032567109,4.467,3647.5,3647.4,3.0]
[1754032567326,4.467,3647.5,3647.4,3.1368]
[1754032567531,4.467,3647.5,3647.4,4.3562]
[1754032567916,4.467,3647.5,3647.4,3.1368]
[1754032571503,4.9137,3647.5,3647.1,0.02]
[1754032571839,0.1368,3647.3,3647.1,0.02]
[1754032572034,4.46,3647.2,3647.1,0.02]
[1754032572426,4.5968,3647.2,3647.1,0.02]
[1754032572734,5.26941,3647.2,3647.1,0.02]
[1754032573037,4.5968,3647.2,3647.1,0.02]
[1754032573251,4.46,3647.2,3647.1,0.02]
[1754032573938,6.1426,3647.2,3647.1,0.02]
[1754032574107,7.1427,3647.2,3647.1,0.02]
[1754032575227,4.46,3647.2,3647.1,0.02]
[1754032576348,4.91968,3647.2,3647.1,0.02]
[1754032576527,6.60228,3647.2,3647.1,0.02]
[1754032577041,8.91028,3647.2,3647.1,0.02]
[1754032577539,7.22768,3647.2,3647.1,0.02]
[1754032577747,6.768,3647.2,3647.1,0.02]
[1754032578247,8.8154,3647.2,3647.1,0.02]
[1754032578818,8.3811,3647.2,3647.1,0.02]
[1754032579616,6.768,3647.2,3647.1,0.02]
[1754032580809,6.768,3647.2,3647.1,0.022]
[1754032581141,8.3811,3647.2,3647.1,0.022]
[1754032581344,10.26062,3647.2,3647.1,0.022]
[1754032583435,6.9048,3647.2,3647.1,0.022]
[1754032583637,6.75,3647.2,3647.1,0.022]
[1754032584347,0.4343,3650.5,3647.5,11.82651746]
[1754032584553,4.7155569,3649.8,3649.2,3.0]
[1754032584712,4.7155569,3649.8,3647.6,0.36788377]
[1754032584713,4.462,3649.8,3649.6,2.73995943]
[1754032584914,4.462,3649.8,3649.7,2.73995122]
[1754032585108,4.496,3650.0,3649.8,5.73987615]
[1754032585345,4.523,3649.9,3649.8,5.73987615]
[1754032585713,0.02,3649.9,3649.8,5.73987615]
[1754032585909,4.523,3649.9,3649.5,3.0]
[1754032586257,4.9753,3649.9,3649.5,2.7400814]
[1754032586435,2.0854,3649.9,3648.5,2.74084713]
[1754032586756,4.501,3649.8,3648.5,5.7408524]
[1754032586935,4.501,3649.8,3648.6,3.0]
[1754032587259,4.501,3649.8,3649.6,2.73995601]
[1754032587569,4.501,3649.8,3649.6,2.74001297]
[1754032588354,4.501,3649.8,3649.5,2.74008696]
[1754032588527,5.3874,3649.8,3649.3,2.74025137]
[1754032588728,1.6131,3649.7,3649.3,3.20493624]
[1754032589127,4.9353,3649.8,3649.3,3.20493624]
[1754032589351,2.0474,3649.7,3649.0,3.0]
[1754032589536,2.0474,3649.7,3649.1,2.74040161]
[1754032589716,0.65684,3649.6,3648.9,5.7405297]
[1754032590046,4.501,3649.8,3648.9,5.7405297]
[1754032590047,4.501,3649.8,3648.9,0.20331058]
[1754032590256,4.501,3649.8,3649.1,3.0]
[1754032590438,4.501,3649.8,3649.7,2.73995122]
[1754032591079,0.02,3649.9,3649.8,5.73987615]
[1754032591355,4.514,3649.9,3649.8,5.73987615]
[1754032592117,4.512,3649.9,3649.8,6.60807265]
[1754032592570,4.512,3649.9,3649.8,5.73987615]